Cogmind - Beta 16 @@@ ROGUE MODE // 2025.11.19 @ 14:13:33 Player: Reflectatory Result: Destroyed by G-67 Veteran with Field Laser Performance ------------- Evolutions (6) 3000 Regions Visited (7) 1400 Robots Destroyed (0) 0 Value Destroyed (0) 0 Prototype IDs (0) 0 Alien Tech Used (0) 0 Bonus (2880) 2880 TOTAL SCORE: 7280 Bonus ------- Pacifist 2880 Cogmind --------- Core Integrity 0/1150 Matter 217/300 Energy 92/100 System Corruption 9% Temperature Cool (9) Movement Core (50) Location -4/Factory Parts ------- > --- POWER (1) -------- (None) > --- PROPULSION (2) --- (None) > --- UTILITY (14) ----- Advanced Heat Sink Advanced Visual Processing Unit Enhanced Optical Array Enhanced Optical Array Enhanced Optical Array Enhanced Optical Array Transport Network Coupler > --- WEAPON (2) ------- (None) > --- INVENTORY (5) ---- (None) Peak State ------------ > --- POWER ------------ (None) > --- PROPULSION ------- (None) > --- UTILITY ---------- Advanced Visual Processing Unit Enhanced Optical Array Enhanced Optical Array Enhanced Optical Array Enhanced Optical Array Enhanced Optical Array Phase Shifter Advanced Drone Bay > --- WEAPON ----------- (None) > --- INVENTORY -------- (None) [Rating: 45] Favorites ----------- Power None Propulsion None Utility Enhanced Optical Array Device Improved Transmission Jammer Processor Enhanced Optical Array Weapon None Build | -11 -10 -9 -8 -7 -6 -5 -4 ------- Run | Yrd Mat Mat Mat Fac Fac Fac Fac Slots Evolved 12 | . . 2 2 2 2 2 2 Power . | . . . . . . . . Propulsion . | . . . . . . . . Utility 12 | . . 2 2 2 2 2 2 Weapon . | . . . . . . . . Parts Attached 12 | . . . 1 . 5 3 3 Power . | . . . . . . . . Engine . | . . . . . . . . Core . | . . . . . . . . Reactor . | . . . . . . . . Propulsion . | . . . . . . . . Treads . | . . . . . . . . Leg . | . . . . . . . . Wheel . | . . . . . . . . Hover . | . . . . . . . . Flight . | . . . . . . . . Utility 12 | . . . 1 . 5 3 3 Device 5 | . . . . . . 2 3 Storage . | . . . . . . . . Processor 7 | . . . 1 . 5 1 . Hackware . | . . . . . . . . Protection . | . . . . . . . . Artifact . | . . . . . . . . Weapon . | . . . . . . . . Energy Gun . | . . . . . . . . Energy Cannon . | . . . . . . . . Ballistic Gun . | . . . . . . . . Ballistic Cannon . | . . . . . . . . Launcher . | . . . . . . . . Special Weapon . | . . . . . . . . Impact Weapon . | . . . . . . . . Slashing Weapon . | . . . . . . . . Piercing Weapon . | . . . . . . . . Special Melee Weapon . | . . . . . . . . Unidentified Prototypes . | . . . . . . . . Parts Lost 4 | . . . . . . 1 3 Power . | . . . . . . . . Propulsion . | . . . . . . . . Utility 4 | . . . . . . 1 3 Weapon . | . . . . . . . . Highest Loss Streak 3 | . . . . . . 1 3 To Critical Strikes . | . . . . . . . . Average Backups . | . . . . . . . . Power . | . . . . . . . . Propulsion . | . . . . . . . . Utility . | . . . . . . . . Weapon . | . . . . . . . . Tool/Special . | . . . . . . . . Unused Backups . | . . . . . . . . Power . | . . . . . . . . Propulsion . | . . . . . . . . Utility . | . . . . . . . . Weapon . | . . . . . . . . Tool/Special . | . . . . . . . . Average Slot Usage (%) 26 | . . . 6 7 17 39 39 Device 1 | . . . . . . 1 3 Processor 24 | . . . 6 7 17 37 34 Peak Build Rating 45 | . . . 3 3 28 45 38 Average Rating 21 | . . . 2 3 14 30 32 On Entrance 7 | . . . . 3 3 28 29 Avg Prop Armor Cover (%) . | . . . . . . . . Naked Turns 122 | . 32 74 16 . . . . Heaviest Build 2 | . . . . . . 1 2 Greatest Support 3 | 3 3 3 3 3 3 3 3 Greatest Overweight (x) . | . . . . . . . . Average Overweight (x) . | . . . . . . . . Largest Inventory Capacity 5 | 5 5 5 5 5 5 5 5 Average Capacity 5 | 5 5 5 5 5 5 5 5 Most Carried . | . . . . . . . . Average Carried . | . . . . . . . . Final Capacity 5 | 5 5 5 5 5 5 5 5 Final Carried . | . . . . . . . . Class Distribution -------------------- 100% | Mutant Dominant Class ---------------- Mutant | -10/Materials Mutant | -9/Materials Mutant | -8/Materials Mutant | -7/Factory Mutant | -6/Factory Mutant | -5/Factory Mutant | -4/Factory Resources | -11 -10 -9 -8 -7 -6 -5 -4 ----------- Run | Yrd Mat Mat Mat Fac Fac Fac Fac Matter Collected 170 | . . . . . . 170 . Remotely . | . . . . . . . . Salvage Created . | . . . . . . . . Parts . | . . . . . . . . Haulers Intercepted . | . . . . . . . . Recyclers Shooed . | . . . . . . . . Parts Field Recycled . | . . . . . . . . Retrieved Matter . | . . . . . . . . Parts Self-Destructed . | . . . . . . . . Prevented . | . . . . . . . . Parts Restored . | . . . . . . . . Kills | -11 -10 -9 -8 -7 -6 -5 -4 ------- Run | Yrd Mat Mat Mat Fac Fac Fac Fac Combat Hostiles Destroyed . | . . . . . . . . Classes Destroyed . | . . . . . . . . Best Kill Streak . | . . . . . . . . Combat Bots Only . | . . . . . . . . Max Kills in Single Turn . | . . . . . . . . Gunslinging . | . . . . . . . . Exploded . | . . . . . . . . Melee . | . . . . . . . . Uniques/NPCs Destroyed . | . . . . . . . . Combat | -11 -10 -9 -8 -7 -6 -5 -4 -------- Run | Yrd Mat Mat Mat Fac Fac Fac Fac Hostile Shots Fired 206 | . 2 28 2 . . 59 115 Missed 88 | . 1 14 1 . . 25 47 Hits 118 | . 1 14 1 . . 34 68 Projectile 118 | . 1 14 1 . . 34 68 Critical Strikes 6 | . . . . . . 1 5 Part Disruptions 1 | . . . . . . 1 . Damage Taken 2284 | . 10 141 72 . . 708 1353 Core 2004 | . 10 141 67 . . 625 1161 Absorbed by Shields . | . . . . . . . . Core Remaining (%) 83 | 100 96 64 87 100 100 37 . Volleys Fired . | . . . . . . . . Largest . | . . . . . . . . Hottest . | . . . . . . . . Shots Fired . | . . . . . . . . Gun . | . . . . . . . . Cannon . | . . . . . . . . Launcher . | . . . . . . . . Special . | . . . . . . . . Kinetic . | . . . . . . . . Thermal . | . . . . . . . . Explosive . | . . . . . . . . Electromagnetic . | . . . . . . . . Robot Hit Streak . | . . . . . . . . Robot Miss Streak . | . . . . . . . . Penetration Max . | . . . . . . . . Secondary Targets . | . . . . . . . . Shots Hit Robots . | . . . . . . . . Core Hits 1 | . . 1 . . . . . Critical Kills . | . . . . . . . . Critical Parts Destroyed . | . . . . . . . . Critical Strikes . | . . . . . . . . Melee Attacks . | . . . . . . . . Impact . | . . . . . . . . Slashing . | . . . . . . . . Piercing . | . . . . . . . . Sneak Attacks . | . . . . . . . . Combat Hostiles . | . . . . . . . . Follow-up Attacks . | . . . . . . . . Damage Inflicted 65 | . . 7 11 . . 32 15 Guns . | . . . . . . . . Cannons . | . . . . . . . . Explosions . | . . . . . . . . Melee . | . . . . . . . . Ramming 65 | . . 7 11 . . 32 15 Kinetic . | . . . . . . . . Thermal . | . . . . . . . . Explosive . | . . . . . . . . Electromagnetic . | . . . . . . . . Impact . | . . . . . . . . Slashing . | . . . . . . . . Piercing . | . . . . . . . . Highest Corruption 9 | . . . . . . 9 9 Average Corruption 4 | . . . . . . 4 4 Corruption Purged . | . . . . . . . . Corruption Blocked . | . . . . . . . . Effects 5 | . . . . . . 3 2 Message Errors 2 | . . . . . . 1 1 Matter Fused 1 | . . . . . . 1 . Energy Discharges 1 | . . . . . . . 1 Data Loss (minor) 1 | . . . . . . 1 . Overload Shots . | . . . . . . . . Overflow Damage . | . . . . . . . . Projectiles . | . . . . . . . . Explosions . | . . . . . . . . Melee . | . . . . . . . . Knockbacks . | . . . . . . . . Impact . | . . . . . . . . Kinetic . | . . . . . . . . Secondary . | . . . . . . . . Self-Inflicted Damage 29 | . . 3 5 . . 14 7 Shots . | . . . . . . . . Rammed 15 | . . 2 1 . . 9 3 Targets Rammed 15 | . . 2 1 . . 9 3 Kicked . | . . . . . . . . Crushed . | . . . . . . . . Highest Temperature . | . . . . . . . . Average Temperature . | . . . . . . . . Received Heat Transfer 201 | . 6 18 . . . 54 123 Siege Activations . | . . . . . . . . Martial Activations . | . . . . . . . . Shielding Activations . | . . . . . . . . Robots Disrupted . | . . . . . . . . Combat Hostiles . | . . . . . . . . Robots Corrupted . | . . . . . . . . Combat Hostiles . | . . . . . . . . Parts Fried . | . . . . . . . . Impact Corruptions . | . . . . . . . . Robots Melted . | . . . . . . . . Combat Hostiles . | . . . . . . . . Parts Melted . | . . . . . . . . Heat Transferred . | . . . . . . . . Parts Sabotaged . | . . . . . . . . Parts Stolen . | . . . . . . . . Parts Stripped . | . . . . . . . . Power Chain Reactions . | . . . . . . . . Alert | -11 -10 -9 -8 -7 -6 -5 -4 ------- Run | Yrd Mat Mat Mat Fac Fac Fac Fac Maximum Alert Level . | . . . . . . . . Low Security (%) 100 | 100 100 100 100 100 100 100 100 Level 1 . | . . . . . . . . Level 2 . | . . . . . . . . Level 3 . | . . . . . . . . Level 4 . | . . . . . . . . Level 5 . | . . . . . . . . High Security . | . . . . . . . . Max Security . | . . . . . . . . Peak Influence 110 | . . 110 42 18 . 20 60 Initial 42 | . . . 42 18 . . . Average 11 | . . 45 31 9 . 2 13 Influence Increases 285 | . . 120 30 . . 60 75 Partial Spotted 45 | . . 15 . . . 30 . Lose Combat Pursuer 240 | . . 105 30 . . 30 75 Influence Decreases 280 | . . 20 88 42 . 60 70 Entered New Map 82 | . . . 58 24 . . . Time Decay 163 | . . 20 30 18 . 55 40 Lost Part 35 | . . . . . . 5 30 Squads Dispatched 5 | . 1 1 . . . 1 2 Investigation 2 | . . 1 . . . . 1 Extermination 1 | . . . . . . 1 . Reinforcement 2 | . 1 . . . . . 1 Assault . | . . . . . . . . Garrison . | . . . . . . . . Intercept . | . . . . . . . . Searches Triggered . | . . . . . . . . Construction Impeded . | . . . . . . . . Haulers Reinforced . | . . . . . . . . Active Scanning Responses . | . . . . . . . . Cargo Convoy Interrupts . | . . . . . . . . Stealth | -11 -10 -9 -8 -7 -6 -5 -4 --------- Run | Yrd Mat Mat Mat Fac Fac Fac Fac Distress Signals 1 | . . 1 . . . . . Communications Jammed . | . . . . . . . . Distress Signals . | . . . . . . . . Times Spotted 52 | . 6 13 7 . 1 10 15 Peak Tracking Total 9 | . 5 8 6 . 1 5 9 Tactical Retreats 8 | . . 2 2 . . 2 2 Traps | -11 -10 -9 -8 -7 -6 -5 -4 ------- Run | Yrd Mat Mat Mat Fac Fac Fac Fac Traps Triggered 3 | . . . . 1 . 2 . Indirectly . | . . . . . . . . Trap Hack Attempts . | . . . . . . . . Triggered . | . . . . . . . . Disarmed . | . . . . . . . . Reprogrammed . | . . . . . . . . Reused . | . . . . . . . . Traps Extracted . | . . . . . . . . Installed . | . . . . . . . . Triggered . | . . . . . . . . Machines | -11 -10 -9 -8 -7 -6 -5 -4 ---------- Run | Yrd Mat Mat Mat Fac Fac Fac Fac Machines Disabled . | . . . . . . . . Max in Single Turn . | . . . . . . . . Machines Repaired . | . . . . . . . . Machines Dismantled . | . . . . . . . . Machines Sabotaged . | . . . . . . . . Overloaded Fab Kills . | . . . . . . . . Hacking | -11 -10 -9 -8 -7 -6 -5 -4 --------- Run | Yrd Mat Mat Mat Fac Fac Fac Fac Machines Accessed 1 | . . . . . . . 1 Terminals . | . . . . . . . . Fabricators . | . . . . . . . . Repair Stations . | . . . . . . . . Recycling Units . | . . . . . . . . Scanalyzers . | . . . . . . . . Garrison Access 1 | . . . . . . . 1 Total Hacks 2 | . . . . . . . 2 Successful . | . . . . . . . . Failed 2 | . . . . . . . 2 Catastrophic 1 | . . . . . . . 1 Database Lockouts . | . . . . . . . . Manual . | . . . . . . . . Terminals . | . . . . . . . . Fabricators . | . . . . . . . . Repair Stations . | . . . . . . . . Recycling Units . | . . . . . . . . Scanalyzers . | . . . . . . . . Garrison Access 2 | . . . . . . . 2 Terminal Hacks . | . . . . . . . . Fabricator Hacks . | . . . . . . . . Repair Station Hacks . | . . . . . . . . Recycling Unit Hacks . | . . . . . . . . Scanalyzer . | . . . . . . . . Garrison Access Hacks . | . . . . . . . . Unauthorized Hacks . | . . . . . . . . Terminals . | . . . . . . . . Fabricators . | . . . . . . . . Repair Stations . | . . . . . . . . Recycling Units . | . . . . . . . . Scanalyzers . | . . . . . . . . Garrison Access . | . . . . . . . . Data Cores Recovered . | . . . . . . . . Used . | . . . . . . . . Hacking Detections 1 | . . . . . . . 1 Full Trace Events 1 | . . . . . . . 1 Feedback Events . | . . . . . . . . Feedback Blocked . | . . . . . . . . Robot Schematics Acquired . | . . . . . . . . Robots Built . | . . . . . . . . Authchips . | . . . . . . . . Time . | . . . . . . . . Total Robot Build Rating . | . . . . . . . . Part Schematics Acquired . | . . . . . . . . Parts Built . | . . . . . . . . Authchips . | . . . . . . . . Time . | . . . . . . . . Total Part Build Rating . | . . . . . . . . Part Studies Acquired . | . . . . . . . . Parts Repaired . | . . . . . . . . Time . | . . . . . . . . Parts Recycled . | . . . . . . . . Recycled Matter . | . . . . . . . . Retrieved Matter . | . . . . . . . . Retrieved Components . | . . . . . . . . Parts Scanalyzed . | . . . . . . . . Part Schematics Acquired . | . . . . . . . . Parts Damaged . | . . . . . . . . Bothacking | -11 -10 -9 -8 -7 -6 -5 -4 ------------ Run | Yrd Mat Mat Mat Fac Fac Fac Fac Used RIF Installer . | . . . . . . . . Robots Hacked . | . . . . . . . . Non-combat . | . . . . . . . . Combat . | . . . . . . . . Robot Hacks Applied . | . . . . . . . . Relay Couplers Released . | . . . . . . . . Fabnet Peak Effective % . | . . . . . . . . Robots Rewired . | . . . . . . . . Allies Hacked . | . . . . . . . . Hacks Repelled . | . . . . . . . . Allies | -11 -10 -9 -8 -7 -6 -5 -4 -------- Run | Yrd Mat Mat Mat Fac Fac Fac Fac Total Allies . | . . . . . . . . Largest Group . | . . . . . . . . Highest-Rated Group . | . . . . . . . . Highest-Rated Ally . | . . . . . . . . Total Orders . | . . . . . . . . Ally Attacks . | . . . . . . . . Total Damage . | . . . . . . . . Kills . | . . . . . . . . Allies Corrupted . | . . . . . . . . Allies Melted . | . . . . . . . . Intel | -11 -10 -9 -8 -7 -6 -5 -4 ------- Run | Yrd Mat Mat Mat Fac Fac Fac Fac Active Infowar (turns) 684 | . . . 62 51 44 347 180 Optics 684 | . . . 62 51 44 347 180 Terrain 18 | . . . . . . . 18 T.N.C. 313 | . . . . . . 133 180 Jamming 20 | . . . . . . . 20 Robot Analysis Total . | . . . . . . . . Derelict Logs Recovered . | . . . . . . . . Drone Launches . | . . . . . . . . Drone Recoveries . | . . . . . . . . Exploration | -11 -10 -9 -8 -7 -6 -5 -4 ------------- Run | Yrd Mat Mat Mat Fac Fac Fac Fac Turns Passed 815 | 9 32 74 78 51 44 347 180 Spaces Moved 1437 | 18 64 143 126 70 72 600 344 Core 1437 | 18 64 143 126 70 72 600 344 Treads . | . . . . . . . . Legs . | . . . . . . . . Wheels . | . . . . . . . . Hover . | . . . . . . . . Flight . | . . . . . . . . Fastest Speed 50 | 50 50 50 50 50 50 50 50 Average Speed 50 | 50 50 50 50 50 50 50 50 Slowest Speed 50 | 50 50 50 50 50 50 50 50 Overloaded Moves . | . . . . . . . . Propulsion Burnouts . | . . . . . . . . Robots Hopped . | . . . . . . . . Potential Cave-ins . | . . . . . . . . Cave-ins Triggered . | . . . . . . . . Exploration Rate (%) 16 | 3 23 28 23 3 3 32 18 Regions Visited 7 Branch Regions . Pre-discovered Areas . | . . . . . . . . Known Exits Taken . | . . . . . . . . Unknown Exits Taken 7 | 1 1 1 1 1 1 1 . Scrap Searched . | . . . . . . . . Spaces Dug . | . . . . . . . . Terrain Destroyed . | . . . . . . . . Melee . | . . . . . . . . Projectile . | . . . . . . . . AOE . | . . . . . . . . Terrain Rammed . | . . . . . . . . Walls Destroyed . | . . . . . . . . Machines Disabled . | . . . . . . . . Actions | -11 -10 -9 -8 -7 -6 -5 -4 --------- Run | Yrd Mat Mat Mat Fac Fac Fac Fac Total 1520 | 17 63 144 140 85 76 645 350 Wait 32 | . . . 13 1 . 18 . Move 1431 | 17 63 142 126 69 71 599 344 Hop . | . . . . . . . . Pick Up . | . . . . . . . . Fast Attach 12 | . . . 1 . 5 3 3 Attach . | . . . . . . . . Detach . | . . . . . . . . Swap . | . . . . . . . . Drop 1 | . . . . . . 1 . Fire . | . . . . . . . . Melee . | . . . . . . . . Ram 14 | . . 2 . . . 9 3 Kick . | . . . . . . . . Crush . | . . . . . . . . Escape Stasis 30 | . . . . 15 . 15 . Rewire . | . . . . . . . . Trap . | . . . . . . . . Miscellaneous . | . . . . . . . . Route ------- -11/Scrapyard -10/Materials -9/Materials -8/Materials -7/Factory -6/Factory -5/Factory -4/Factory History --------- Turn | Location | Event 5 | -11/Scrapyard | Discovered new exit (range 12) 10 | -11/Scrapyard | Entered Materials 40 | -10/Materials | Discovered new exit (range 5) 42 | -10/Materials | Entered another Materials area 42 | -9/Materials | Evolved 2 slots: Utility x2 109 | -9/Materials | Discovered new exit (range 15) 116 | -9/Materials | Entered another Materials area 116 | -8/Materials | Evolved 2 slots: Utility x2 192 | -8/Materials | Discovered new exit (range 5) 194 | -8/Materials | Entered Factory 194 | -7/Factory | Evolved 2 slots: Utility x2 222 | -7/Factory | Discovered new exit (range 15) 245 | -7/Factory | Entered another Factory area 245 | -6/Factory | Evolved 2 slots: Utility x2 278 | -6/Factory | Discovered new exit (range 21) 289 | -6/Factory | Entered another Factory area 289 | -5/Factory | Evolved 2 slots: Utility x2 314 | -5/Factory | Build established: Mutant 627 | -5/Factory | Discovered new exit (range 18) 629 | -5/Factory | Core integrity fell below 50% 636 | -5/Factory | Entered another Factory area 636 | -4/Factory | Evolved 2 slots: Utility x2 684 | -4/Factory | Spotted B-86 Titan 761 | -4/Factory | Core integrity fell below 50% 784 | -4/Factory | Core integrity fell below 20% 809 | -4/Factory | Lost 3 parts (3u) 816 | -4/Factory | Destroyed by G-67 Veteran with Field Laser Last Messages --------------- K-01 Serf cleans the Power Conduit. Slug penetrates Power Conduit. K-01 Serf collects debris. Acquired Imp. Terrain Scanner. Slammed into P-70 Sage. System corrupted: Energy discharge (-21). Door malfunctions. Enh. Optical Array destroyed. Imp. Terrain Scanner destroyed. Penetrated by Slug. P-70 Sage resets P-70 Sage, system corruption cleaned. Imp. Transmission Jammer destroyed. DKQUB#R: